Cogmind - Beta 9 @@@ ROGUE MODE // 2019.10.26 @ 23:25:03 Player: Trione Result: Destroyed by Lightning with EMDS Performance ------------- Evolutions (6) 3000 Regions Visited (25) 5000 Robots Destroyed (506) 2530 Value Destroyed (24835) 24835 Prototype IDs (61) 1220 Alien Tech Used (0) 0 Bonus (9436) 9436 TOTAL SCORE: 46021 Bonus ------- High Alert Combat Kills 2339 Follower Combat Kills 1731 Entered Garrisons 1400 Used RIF Installer 3500 Network Hubs Disabled 200 Aligned with FarCom 300 Met R17 at Cetus 500 Friendly Fire -534 Cogmind --------- Core Integrity 0/1150 Matter 70/300 Energy 130/130 System Corruption 3% Temperature Cool (0) Location -4/Hub_04(d) Parts ------- Power (1) Mini Fusion Reactor Propulsion (2) Centrium Heavy Treads Utility (14) Advanced Heat Sink Large Storage Unit Large Storage Unit High-capacity Storage Unit High-capacity Storage Unit High-capacity Storage Unit Improved Targeting Computer Advanced Targeting Computer Centrium Medium Armor Plating Relay Coupler [Sentry] (20) Relay Coupler [Hunter] (25) Weapon (2) Improved KE Penetrator Improved KE Penetrator Inventory (40) Quantum Reactor Centrium Heavy Treads Advanced Heat Sink Energy Well (500) Energy Well (500) Superbattery (2000) Matter Compressor (250) Improved Weapon Cycler Hacking Suite Relay Coupler [Swarmer] (58) Relay Coupler [Brawler] (40) System Backup Module Tesla Rifle Plasma Rifle Advanced Variable Charge Gun Improved EM Pulse Cannon Heavy Disruptor Cannon Cooled Plasma Cannon Neutron Cannon Neutron Cannon Matter Neutralizer KE Penetrator Railgun Improved KE Penetrator Improved KE Penetrator Heavy Shock Bomb Launcher Heavy Shock Bomb Launcher Micro-nuke Launcher Improved Remote Datajack Thunder Hammer Kinetic Spear Kinetic Spear Peak State ------------ Power Micro Fission Core Propulsion Centrium Heavy Treads Utility Advanced Heat Sink Large Storage Unit Large Storage Unit High-capacity Storage Unit High-capacity Storage Unit High-capacity Storage Unit Improved Targeting Computer Advanced Targeting Computer Improved Weapon Cycler Centrium Medium Armor Plating Centrium Medium Armor Plating Centrium Medium Armor Plating Relay Coupler [Sentry] Relay Coupler [Hunter] Weapon Improved KE Penetrator Improved KE Penetrator Inventory Mini Fusion Reactor Quantum Reactor Centrium Heavy Treads Centrium Heavy Treads Advanced Heat Sink Energy Well Superbattery Matter Compressor Improved Weapon Cycler Centrium Medium Armor Plating Centrium Medium Armor Plating Hacking Suite Relay Coupler [Swarmer] Relay Coupler [Brawler] System Backup Module Tesla Rifle Plasma Rifle Advanced Variable Charge Gun Improved EM Pulse Cannon Heavy Disruptor Cannon Cooled Plasma Cannon Neutron Cannon Neutron Cannon Matter Neutralizer KE Penetrator Railgun Improved KE Penetrator Improved KE Penetrator Heavy Shock Bomb Launcher Heavy Shock Bomb Launcher Micro-nuke Launcher Improved Remote Datajack Thunder Hammer Kinetic Spear Kinetic Spear [Rating: 122] Favorites ----------- Power Micro Fission Core Engine Ion Engine Power Core Micro Fission Core Reactor Mini Fusion Reactor Propulsion Armored Wheel Treads Heavy Treads Leg Flexi-carbon Leg Wheel Armored Wheel Hover Unit Backup Propulsion III Flight Unit Improved Flight Unit Utility Large Storage Unit Device System Backup Module Storage Large Storage Unit Processor Advanced Targeting Computer Hackware Relay Coupler [Sentry] Protection Improved Light Armor Plating Weapon Advanced Beam Cannon Energy Gun Enhanced Force Rifle Energy Cannon Advanced Beam Cannon Ballistic Gun Coil Gun Ballistic Cannon Mass Driver Launcher Heavy Shock Bomb Launcher Special Weapon Improved Remote Datajack Impact Weapon Thunder Hammer Slashing Weapon Katana Piercing Weapon Kinetic Spear Special Melee Weapon Improved Datajack Build | -11 -10 -10 -9 -9 -9 -8 -8 -8 -8 -8 -7 -7 -7 -7 -6 -6 -5 -5 -4 -4 -4 -4 -4 -4 -4 ------- Run | Scr Mat Min Mat Min Exi Min Mat Gar Mat Gar Fac Gar Fac Gar Fac Gar Fac Gar Fac Gar Fac Ext Cet Arc Hub Slots Evolved 12 | . . . 2 . . . 2 . . . 2 . . . 2 . 2 . 2 . . . . . . Power . | . . . . . . . . . . . . . . . . . . . . . . . . . . Propulsion . | . . . . . . . . . . . . . . . . . . . . . . . . . . Utility 12 | . . . 2 . . . 2 . . . 2 . . . 2 . 2 . 2 . . . . . . Weapon . | . . . . . . . . . . . . . . . . . . . . . . . . . . Parts Attached 705 | 7 13 5 40 2 1 1 42 15 27 28 5 35 14 23 30 38 50 19 12 32 68 115 35 16 32 Power 26 | 1 1 . 1 . . . 4 . 2 1 . 1 . 2 1 . 2 1 . 1 2 4 1 . 1 Engine 7 | 1 1 . 1 . . . 2 . . . . 1 . . . . 1 . . . . . . . . Core 17 | . . . . . . . 2 . 2 1 . . . 2 1 . 1 1 . 1 2 3 1 . . Reactor 2 | . . . . . . . . . . . . . . . . . . . . . . 1 . . 1 Propulsion 67 | 3 6 . 6 . . 1 . 3 3 4 1 2 2 . 1 1 5 . . 1 15 11 1 . 1 Treads 26 | 1 6 . 3 . . . . . . . . . . . . . . . . 1 7 6 1 . 1 Leg 3 | . . . . . . . . . . . . . . . . . . . . . . 3 . . . Wheel 35 | 2 . . 2 . . 1 . 3 3 4 1 2 2 . 1 1 4 . . . 7 2 . . . Hover 2 | . . . . . . . . . . . . . . . . . 1 . . . 1 . . . . Flight 1 | . . . 1 . . . . . . . . . . . . . . . . . . . . . . Utility 207 | 1 4 . 10 . 1 . 7 1 . 14 3 14 3 7 10 15 15 9 6 13 13 34 13 5 9 Device 39 | . . . 1 . . . 1 . . 1 1 1 . . . . . . 1 3 4 14 4 3 5 Storage 57 | 1 4 . 4 . 1 . 4 1 . 4 1 6 . 2 3 6 1 4 . 3 . 8 4 . . Processor 4 | . . . . . . . . . . . . . 1 . . . . . . . 1 2 . . . Hackware 22 | . . . . . . . 1 . . 2 . . . 2 3 1 4 1 2 1 1 2 . 1 1 Protection 85 | . . . 5 . . . 1 . . 7 1 7 2 3 4 8 10 4 3 6 7 8 5 1 3 Artifact . | . . . . . . . . . . . . . . . . . . . . . . . . . . Weapon 405 | 2 2 5 23 2 . . 31 11 22 9 1 18 9 14 18 22 28 9 6 17 38 66 20 11 21 Energy Gun 56 | 2 . 3 4 . . . 3 1 . 1 . 4 . 3 2 . . 1 2 6 6 14 1 2 1 Energy Cannon 66 | . . . 4 1 . . 14 4 6 5 . 2 . . 1 3 . 1 . 1 3 12 3 . 6 Ballistic Gun 97 | . 2 1 6 . . . . . 5 . . 2 5 1 5 9 7 4 1 3 14 8 6 5 13 Ballistic Cannon 12 | . . . . . . . . . 1 . . . 1 . . . 2 . . 2 3 3 . . . Launcher 71 | . . 1 8 1 . . 4 5 6 2 . 7 . 7 1 5 3 2 . 4 1 8 6 . . Special Weapon 29 | . . . . . . . . . . . . . . . 6 1 5 . 1 1 5 6 2 2 . Impact Weapon 5 | . . . . . . . . . . . . . . . . . 2 . . . . 2 1 . . Slashing Weapon 40 | . . . 1 . . . 10 1 4 . 1 3 3 3 3 4 6 . 1 . . . . . . Piercing Weapon 24 | . . . . . . . . . . . . . . . . . 3 1 1 . 6 9 1 2 1 Special Melee Weapon 5 | . . . . . . . . . . 1 . . . . . . . . . . . 4 . . . Unidentified Prototypes 21 | . . . 2 . . . 3 . 2 . . . 1 . 2 . 6 . . . . 1 4 . . Parts Lost 98 | . 1 1 7 . . . 2 . 1 6 . 8 2 4 2 2 7 3 2 9 7 23 2 1 8 Power 11 | . 1 . 1 . . . . . . 1 . 1 . 2 . . 1 . . 1 . 1 1 . 1 Propulsion 9 | . . . 1 . . . . . . 2 . . . . 1 . 1 . . . . 3 . . 1 Utility 53 | . . . 2 . . . 1 . . 2 . 6 2 1 . . 5 2 2 5 7 10 1 1 6 Weapon 25 | . . 1 3 . . . 1 . 1 1 . 1 . 1 1 2 . 1 . 3 . 9 . . . Highest Loss Streak 5 | . 1 1 3 . . . 1 . 1 2 . 4 1 1 1 1 3 3 2 4 3 5 1 1 3 Average Slot Usage (%) 88 | . 92 100 95 100 89 88 88 90 89 82 86 82 87 88 85 85 88 91 88 86 87 86 84 87 92 Engine 2 | . 14 14 9 11 11 11 1 . . . . 4 7 1 . . 1 . . . . . . . . Core 4 | . . . . . . . 7 9 8 6 7 2 . 5 6 6 3 4 5 4 5 5 5 5 2 Treads 3 | . 26 28 15 . . . . . . . . . . . . . . . . 4 3 4 5 5 5 Wheel 6 | . . . 5 22 22 22 18 18 17 17 10 8 10 7 5 6 7 5 5 . 1 . . . . Device 3 | . . . 1 11 1 . . . . . 7 7 . . . . . . . 6 4 7 11 6 9 Storage 26 | . 21 28 30 33 32 33 32 36 36 20 29 24 30 25 26 16 23 25 21 29 26 26 25 28 26 Processor 5 | . . . . . . . . . . . . . 6 7 6 6 5 5 5 5 7 13 10 10 10 Hackware 11 | . . . . . . . 8 9 9 9 . . . 14 18 26 25 23 25 15 19 11 5 5 9 Protection 7 | . . . 10 . . . 2 . . 10 14 18 15 9 7 9 7 12 15 8 8 4 11 14 14 Energy Gun 2 | . 14 13 1 . . . . 1 . 1 7 2 . 4 . . . . . 5 3 . . 3 . Energy Cannon 3 | . . . 4 21 22 22 11 14 5 8 2 . . . . 2 . 2 . . . 1 . . 3 Ballistic Gun 3 | . 13 14 14 . . . . . 4 1 . . 9 1 . 6 2 4 . 2 3 . 1 1 5 Slashing Weapon 2 | . . . . . . . 6 1 6 1 4 7 5 7 6 2 4 . 1 . . . . . . Naked Turns . | . . . . . . . . . . . . . . . . . . . . . . . . . . Heaviest Build 198 | 11 33 34 66 64 127 127 145 145 144 139 155 159 161 159 158 163 181 174 182 183 143 198 196 179 176 Greatest Support 80 | 20 40 40 42 24 24 24 24 24 24 24 28 28 28 28 28 28 28 28 28 70 75 75 80 80 80 Greatest Overweight (x) 50 | . . . 2 2 5 10 6 6 44 10 6 6 6 5 5 5 13 6 6 6 5 50 2 2 2 Average Overweight (x) 3 | . . . 1 2 4 5 5 5 5 4 5 4 5 2 5 4 5 4 5 1 2 2 1 2 2 Largest Inventory Capacity 56 | 6 14 14 22 22 36 36 56 42 42 44 42 42 42 42 44 44 44 56 44 44 36 54 48 40 40 Average Capacity 35 | 5 7 14 19 22 33 36 39 42 42 31 41 30 42 28 42 34 43 33 44 35 36 38 38 40 40 Most Carried 44 | 6 9 14 22 22 34 35 40 42 42 42 42 42 42 42 44 44 44 44 44 43 36 42 41 40 40 Average Carried 33 | 4 6 12 18 21 29 34 36 40 41 27 40 27 41 28 42 33 43 31 43 33 35 38 37 39 37 Final Capacity 44 | . . . . . . . . . 42 . . . . . 42 . 44 . . . . 42 . . 40 Final Carried 42 | . . . . . . . . . 42 . . . . . 40 . 42 . . . . 39 . . 34 Class Distribution -------------------- 40% | Hauler-Mutant 29% | Botlord-Mutant 17% | Bothacker-Mutant 7% | Mutant 4% | Scavenger-Mutant Dominant Class ---------------- Mutant | -10/Materials Mutant | -10/Mines Hauler-Mutant | -9/Materials Hauler-Mutant | -9/Mines Hauler-Mutant | -9/Exiles Hauler-Mutant | -8/Mines Hauler-Mutant | -8/Materials Hauler-Mutant | -8/Garrison Hauler-Mutant | -8/Materials Hauler-Mutant | -8/Garrison Hauler-Mutant | -7/Factory Hauler-Mutant | -7/Garrison Hauler-Mutant | -7/Factory Scavenger-Mutant | -7/Garrison Bothacker-Mutant | -6/Factory Bothacker-Mutant | -6/Garrison Bothacker-Mutant | -5/Factory Bothacker-Mutant | -5/Garrison Botlord-Mutant | -4/Factory Hauler-Mutant | -4/Garrison Botlord-Mutant | -4/Factory Botlord-Mutant | -4/Extension Botlord-Mutant | -4/Cetus Bothacker-Mutant | -4/Archives Bothacker-Mutant | -4/Hub_04(d) Resources | -11 -10 -10 -9 -9 -9 -8 -8 -8 -8 -8 -7 -7 -7 -7 -6 -6 -5 -5 -4 -4 -4 -4 -4 -4 -4 ----------- Run | Scr Mat Min Mat Min Exi Min Mat Gar Mat Gar Fac Gar Fac Gar Fac Gar Fac Gar Fac Gar Fac Ext Cet Arc Hub Matter Collected 15088 | 261 437 301 881 31 . 20 541 304 280 534 107 514 260 630 667 946 870 609 290 605 1496 2567 686 307 944 Remotely . | . . . . . . . . . . . . . . . . . . . . . . . . . . Salvage Created 24943 | 55 1027 262 1442 112 . 205 1346 578 760 681 110 1396 270 811 501 895 1606 782 620 1446 2758 2881 1519 413 2467 Parts 1121 | 3 51 11 76 9 . 6 63 27 41 23 6 56 17 39 30 34 57 52 27 66 141 101 63 20 102 Haulers Intercepted 15 | . 2 . 5 . . . 2 . 1 . . . . . . . . . . . 2 2 . . 1 Recyclers Shooed 21 | . 6 1 1 . . . 2 . . . 1 . 1 . 2 . 3 . . . 3 1 . . . Parts Field Recycled . | . . . . . . . . . . . . . . . . . . . . . . . . . . Retrieved Matter . | . . . . . . . . . . . . . . . . . . . . . . . . . . Parts Self-Destructed . | . . . . . . . . . . . . . . . . . . . . . . . . . . Prevented . | . . . . . . . . . . . . . . . . . . . . . . . . . . Kills | -11 -10 -10 -9 -9 -9 -8 -8 -8 -8 -8 -7 -7 -7 -7 -6 -6 -5 -5 -4 -4 -4 -4 -4 -4 -4 ------- Run | Scr Mat Min Mat Min Exi Min Mat Gar Mat Gar Fac Gar Fac Gar Fac Gar Fac Gar Fac Gar Fac Ext Cet Arc Hub Combat Hostiles Destroyed 392 | . 13 4 30 2 . 4 24 11 17 14 1 25 4 16 6 20 21 22 5 23 27 41 25 1 36 Melee 29 | . . . . . . . 4 . 2 . . 1 . 2 1 . 6 . 2 . 2 9 . . . Guns 153 | . 13 4 10 . . . . . 2 3 1 5 4 4 3 8 8 6 3 15 22 13 3 1 25 Cannons 55 | . . . 4 2 . 4 12 3 4 5 . . . . . . 1 . . . 3 5 1 . 11 AOE 123 | . . . 16 . . . 8 8 9 5 . 17 . 7 2 12 6 13 . 2 . 7 11 . . Classes Destroyed 19 | 1 6 1 1 1 . . 1 1 . . . . . 2 . . 2 1 . 1 . 1 . . . Worker 24 | . 1 . 2 1 . . . . . . . . . . 6 . . . . . 4 1 . . 9 Builder 4 | . . . . . . . . . . . . . . . . . 1 . . . . . . . 3 Tunneler 7 | . . . . 1 . . . . . . 2 . . . . . . . . . 4 . . . . Hauler 15 | . 2 . 5 . . . 2 . 1 . . . . . . . . . . . 2 2 . . 1 Recycler 30 | 1 4 2 4 . . 1 5 . . . . . . . 1 . 5 . 2 . 3 2 . . . Mechanic 1 | . . . . . . . . . . . . . . . . . 1 . . . . . . . . Operator 17 | . 2 . . . . . 1 . . . . . . . . . 1 . 1 . . 2 . 9 1 Watcher 15 | . 3 . 3 . . . . . 3 . . . . . . . . . . . 5 . 1 . . Swarmer 104 | . 2 2 4 1 . 2 6 2 . 7 . 9 . 3 . 10 8 17 . 7 . 10 9 . 5 Saboteur 2 | . . . . . . . . . . . . . . . . . . . . 2 . . . . . Grunt 163 | . 11 . 20 1 . 2 8 6 9 7 . 9 2 6 1 6 6 5 2 11 6 24 4 . 17 Brawler 9 | . . . . . . . 2 . 2 . . . . . 1 2 . . . . . 2 . . . Duelist 9 | . . . 1 . . . . 1 . . . . . 1 . 1 . . 1 . 2 1 1 . . Protector 1 | . . . . . . . . . . . . . . . . . . . . . . 1 . . . Sentry 45 | . . 2 5 . . . 8 1 5 . 1 6 2 2 1 . 3 . . 2 3 . . 1 3 Specialist 2 | . . . . . . . . . . . . . . 2 . . . . . . . . . . . Hunter 13 | . . . . . . . . 1 1 . . 1 . 1 . . . . . . . 2 3 . 4 Programmer 35 | . . . . . . . . . . . . . . 1 3 1 4 . 2 . 16 1 . . 7 Behemoth 2 | . . . . . . . . . . . . . . . . . . 1 . 1 . . . . . Cetus Guard 8 | . . . . . . . . . . . . . . . . . . . . . . . 8 . . Best Kill Streak 15 | 1 5 3 15 2 . 2 4 3 6 4 3 8 2 3 6 6 5 9 4 4 8 5 5 4 8 Combat Bots Only 9 | . 4 2 8 1 . 2 3 3 4 4 1 8 2 3 2 6 4 9 3 4 5 5 5 1 7 Max Kills in Single Turn 5 | 1 1 1 4 1 . 1 3 2 4 2 1 3 1 2 3 3 2 5 1 1 2 2 5 1 3 Gunslinging 1 | . . . . . . . . . . . . . . . . . . 1 . . . 1 . . 1 Exploded 5 | . . . 3 . . . 3 2 2 2 . 3 . 2 1 3 2 5 . 1 . 2 5 . . Melee 1 | . . . . . . . 1 . 1 . . 1 . 1 1 . 1 . 1 . 1 1 . . . Uniques/NPCs Destroyed . | . . . . . . . . . . . . . . . . . . . . . . . . . . Combat | -11 -10 -10 -9 -9 -9 -8 -8 -8 -8 -8 -7 -7 -7 -7 -6 -6 -5 -5 -4 -4 -4 -4 -4 -4 -4 -------- Run | Scr Mat Min Mat Min Exi Min Mat Gar Mat Gar Fac Gar Fac Gar Fac Gar Fac Gar Fac Gar Fac Ext Cet Arc Hub Damage Taken 27712 | . 410 265 1390 65 . 55 686 161 500 751 216 1738 479 787 643 709 2058 602 457 1850 2595 5060 1389 120 4726 Core 2462 | . 68 67 171 . . 13 76 57 48 97 22 117 65 97 85 34 228 51 19 108 115 478 105 . 341 Absorbed by Shields 592 | . . . . . . . . . . . . . . . . 6 . 19 . 499 . 68 . . . Reduced by Siege Mode 438 | . . . . . . . . . . . . . . . . . . . . 24 95 131 37 . 151 Core Remaining (%) 66 | 100 . 46 . . . 54 . . . 49 . . . 57 . 86 . 72 . . . . . . . Volleys Fired 1465 | 2 101 16 101 11 . 11 55 51 51 83 5 62 16 46 48 61 65 62 17 71 138 170 39 39 144 Largest 2 | 2 2 2 2 2 . 2 2 2 2 2 2 2 2 2 2 2 2 2 1 2 2 2 2 2 2 Hottest 195 | 90 70 85 136 136 . 136 136 136 136 136 113 105 66 66 113 69 99 115 81 162 180 180 110 70 195 Shots Fired 2237 | 4 200 29 166 19 . 22 89 71 83 101 10 76 32 62 61 85 77 78 17 99 239 233 59 41 284 Gun 1403 | 4 200 28 113 . . . . 22 24 22 5 44 32 37 36 52 52 45 8 75 200 140 16 32 216 Cannon 511 | . . . 35 18 . 22 80 38 49 73 5 2 . . . 17 3 11 . 4 26 48 12 . 68 Launcher 219 | . . 1 18 1 . . 9 11 10 6 . 30 . 25 3 11 7 22 . 18 1 19 27 . . Special 104 | . . . . . . . . . . . . . . . 22 5 15 . 9 2 12 26 4 9 . Kinetic 992 | . 101 15 106 . . . . . 27 7 . 9 32 33 29 52 54 41 4 27 132 79 16 12 216 Thermal 727 | 2 99 13 40 18 . 22 80 38 46 73 5 5 . . 4 3 . 4 4 29 90 84 . . 68 Explosive 98 | . . 1 18 1 . . 9 11 10 6 . 3 . 3 3 11 7 2 . . 1 10 2 . . Electromagnetic 316 | 2 . . 2 . . . . 22 . 15 5 59 . 26 3 14 1 31 . 41 4 34 37 20 . Robot Hit Streak 50 | 3 22 16 11 3 . 8 11 12 8 16 19 12 12 11 16 20 16 21 13 19 49 29 27 33 50 Robot Miss Streak 5 | . 3 2 4 3 . 5 3 2 3 3 2 4 2 4 3 4 2 2 1 2 2 4 1 3 2 Penetration Max 2 | . . . . . . . . . . . . . 1 . 1 . 1 . . 2 1 1 1 1 1 Secondary Targets 18 | . 2 1 1 . . . . . . . . . . 1 . . 1 1 . 3 2 3 1 . 2 Max Gunslinging Chain 1 | . 1 1 1 . . . . . . . . . . 1 . . 1 1 . 1 1 1 1 . 1 Shots Hit Robots 1602 | 3 130 19 112 9 . 12 67 35 39 57 8 61 24 37 59 50 95 33 25 70 201 191 31 31 203 Core Hits 926 | 2 42 9 71 4 . 7 41 30 36 28 5 46 8 28 29 37 48 34 14 43 92 94 59 13 106 Critical Hits 174 | . . . 12 2 . 2 8 6 2 8 . . 9 7 5 2 9 1 1 9 39 21 1 2 28 Critical Kills 64 | . . . 4 2 . . 1 3 1 3 . . 4 4 . . 3 . 1 6 16 7 1 . 8 Critical Parts Destroyed 102 | . . . 8 . . 2 6 3 1 5 . . 5 3 4 2 4 1 . 3 23 11 . 1 20 Melee Attacks 447 | . . . 5 . . . 56 . 61 14 12 20 14 10 71 4 86 . 17 . 20 47 . 9 1 Impact 6 | . . . . . . . . . . . . . . . . . 4 . . . . 2 . . . Slashing 304 | . . . 5 . . . 56 . 61 . 12 20 14 10 71 4 50 . 1 . . . . . . Piercing 110 | . . . . . . . . . . . . . . . . . 32 . 16 . 20 32 . 9 1 Sneak Attacks 47 | . . . . . . . 6 . 2 3 1 . 1 . 5 . 6 . 3 . . 13 . 7 . Combat Hostiles 2 | . . . . . . . . . 1 . . . . . . . . . . . . 1 . . . Follow-up Attacks 14 | . . . . . . . . . . . . . . 1 . . 9 . 1 . . 3 . . . Damage Inflicted 55692 | 40 1648 357 3388 297 . 247 2746 1653 2363 1624 407 2298 294 1243 2028 2714 3951 1776 779 2199 5562 6234 3079 1428 7337 Guns 20757 | 40 1648 306 1273 . . . . 281 204 302 55 474 174 184 420 859 777 450 187 1308 3851 2343 401 615 4605 Cannons 7942 | . . . 472 265 . 247 965 346 214 659 61 21 . . . 367 25 256 . . 1036 823 327 . 1858 Explosions 19742 | . . 51 1643 32 . . 938 1026 1593 646 164 1514 . 885 786 1488 1195 1070 . 891 331 2271 2351 . 867 Melee 7112 | . . . . . . . 843 . 352 . 87 289 120 174 822 . 1953 . 592 . 270 797 . 813 . Ramming 139 | . . . . . . . . . . 17 40 . . . . . 1 . . . 74 . . . 7 Kinetic 14999 | . 827 138 1161 . . . . . 231 74 . 48 174 127 304 859 777 402 117 339 2716 1493 401 206 4605 Thermal 11219 | 13 821 168 557 265 . 247 965 524 187 762 225 186 . . 116 . . 214 70 575 2074 1392 . . 1858 Explosive 12040 | . . 51 1643 32 . . 938 848 1593 543 . 178 . 294 786 1488 1195 283 . . 331 1312 525 . . Electromagnetic 10183 | 27 . . 27 . . . . 281 . 228 55 1597 . 648 . 367 25 877 . 1285 97 1240 2153 409 867 Impact 190 | . . . . . . . . . . . . . . . . . 151 . . . . 39 . . . Slashing 3660 | . . . . . . . 843 . 352 . 87 289 120 174 822 . 923 . 50 . . . . . . Piercing 3262 | . . . . . . . . . . . . . . . . . 879 . 542 . 270 758 . 813 . Highest Corruption 17 | . . . . . . . . . . 1 . . . 4 9 9 10 10 5 5 17 17 4 4 2 Average Corruption 7 | . . . . . . . . . . 1 . . . 3 7 9 7 10 1 5 8 12 4 3 1 Corruption Purged 27 | . . . . . . . . . . . . . . . . . . . . . . 17 . 4 6 Effects 839 | . . . . . . . . . . 2 . . . 29 59 81 43 73 4 63 115 321 18 20 11 Message Errors 173 | . . . . . . . . . . . . . . 3 14 21 11 10 1 20 22 61 3 5 2 Matter Fused 157 | . . . . . . . . . . . . . . 11 16 15 5 11 1 5 20 65 4 4 . Heat Flow Errors 75 | . . . . . . . . . . . . . . 3 5 11 3 9 . 9 7 23 3 2 . Energy Discharges 86 | . . . . . . . . . . 1 . . . 4 5 8 5 7 . 6 9 33 1 5 2 Parts Rejected 5 | . . . . . . . . . . . . . . . . 1 . 1 . 1 2 . . . . Data Loss (minor) 88 | . . . . . . . . . . . . . . 6 4 10 3 8 1 9 7 31 4 2 3 Data Loss (major) 29 | . . . . . . . . . . . . . . . 2 4 6 1 . . 2 14 . . . Misfires 21 | . . . . . . . . . . . . . . . . 2 . 5 . 5 5 4 . . . Alerts 8 | . . . . . . . . . . . . . . . . . . 1 . . 3 4 . . . Misdirections 60 | . . . . . . . . . . . . . . . . . 4 10 . . 5 41 . . . Targeting Errors 113 | . . . . . . . . . . 1 . . . 2 13 8 6 8 1 5 22 39 3 1 4 Weapon Failures 24 | . . . . . . . . . . . . . . . . 1 . 2 . 3 11 6 . 1 . Overload Shots . | . . . . . . . . . . . . . . . . . . . . . . . . . . Overflow Damage 1836 | . . . 41 1 . 6 192 16 68 . 113 17 80 1 429 81 418 . . . 62 92 10 63 146 Projectiles 171 | . . . 3 1 . 6 18 16 3 . . . . . . . . . . . 53 . . . 71 Explosions 491 | . . . 38 . . . 38 . 42 . 36 17 . 1 53 81 38 . . . 9 53 10 . 75 Melee 1174 | . . . . . . . 136 . 23 . 77 . 80 . 376 . 380 . . . . 39 . 63 . Knockbacks 15 | . . . . . . . . . 1 . 1 . . . . . 1 . . . 10 2 . . . Impact 5 | . . . . . . . . . . . 1 . . . . . 1 . . . 3 . . . . Kinetic 10 | . . . . . . . . . 1 . . . . . . . . . . . 7 2 . . . Secondary . | . . . . . . . . . . . . . . . . . . . . . . . . . . Self-Inflicted Damage 389 | . . . 122 . . . . 43 . 8 83 6 . . . . 32 . . . . 5 . . 90 Shots 12 | . . . 4 . . . . 2 . . 1 1 . . . . 2 . . . . 1 . . 1 Rammed 12 | . . . . . . . . . . 1 1 . . . . . 1 . . . 8 . . . 1 Targets Rammed 12 | . . . . . . . . . . 1 1 . . . . . 1 . . . 8 . . . 1 Kicked . | . . . . . . . . . . . . . . . . . . . . . . . . . . Crushed . | . . . . . . . . . . . . . . . . . . . . . . . . . . Highest Temperature 775 | 60 132 121 487 156 . 345 409 336 264 432 264 333 108 266 289 264 235 370 132 318 343 775 354 270 388 Average Temperature 96 | 33 34 45 126 46 . 156 125 108 91 103 115 132 36 61 70 80 38 89 49 84 101 154 139 68 122 Received Heat Transfer 4696 | . 213 36 468 . . 9 216 36 180 99 36 432 123 180 183 101 339 62 42 285 243 627 189 18 579 Effects 49 | . . . 3 . . 1 2 2 2 2 1 5 . . 1 2 . 1 . . 1 21 3 . 2 Shutdowns 5 | . . . 2 . . . . . . . . . . . . . . . . . . 2 . . 1 Energy Bleed 9 | . . . . . . . 1 1 . . 1 1 . . 1 . . . . . . 3 1 . . Interference 12 | . . . . . . . . . 2 2 . 2 . . . 2 . 1 . . 1 . 2 . . Matter Decay 4 | . . . 1 . . . . . . . . 2 . . . . . . . . . 1 . . . Short Circuit 1 | . . . . . . 1 . . . . . . . . . . . . . . . . . . . Damage (minor) 4 | . . . . . . . 1 1 . . . . . . . . . . . . . 1 . . 1 Damage (major) 14 | . . . . . . . . . . . . . . . . . . . . . . 14 . . . Siege Activations 57 | . . . . . . . . . . . . . . . . . . . . 6 15 13 7 . 16 Total Turns 1205 | . . . . . . . . . . . . . . . . . . . . 72 505 193 67 . 368 Longest Duration 76 | . . . . . . . . . . . . . . . . . . . . 23 69 38 21 . 76 Robots Corrupted 41 | . . . . . . . . 2 . 2 . 4 . 3 . 3 . 3 . 6 . 7 10 1 . Combat Hostiles 31 | . . . . . . . . . . . . 2 . 3 . . . 3 . 6 . 7 10 . . Parts Fried 96 | . . . . . . . . 1 . 1 . 11 . 10 . . 3 5 . 13 1 19 23 4 5 Impact Corruptions 3 | . . . . . . . . . . . 1 . . . . . 2 . . . . . . . . Robots Melted 2 | . . . . . . . . . . 2 . . . . . . . . . . . . . . . Combat Hostiles 1 | . . . . . . . . . . 1 . . . . . . . . . . . . . . . Parts Melted 42 | . 2 2 . 4 . 2 . 1 . 5 1 . . . 2 . 1 . . 1 8 12 . . 1 Heat Transferred 16869 | 37 2442 407 999 481 . 444 1739 879 333 1334 261 312 . . 200 . . 274 111 864 2585 1882 . . 1285 Parts Sabotaged 2 | . . . . . . . . . . . . . . . . . . . . 2 . . . . . Parts Stolen . | . . . . . . . . . . . . . . . . . . . . . . . . . . Parts Stripped . | . . . . . . . . . . . . . . . . . . . . . . . . . . Power Chain Reactions 16 | . . . . . . . . 2 . 2 1 5 . . . . . 4 . 1 . 1 . . . Missiles Intercepted . | . . . . . . . . . . . . . . . . . . . . . . . . . . Alert | -11 -10 -10 -9 -9 -9 -8 -8 -8 -8 -8 -7 -7 -7 -7 -6 -6 -5 -5 -4 -4 -4 -4 -4 -4 -4 ------- Run | Scr Mat Min Mat Min Exi Min Mat Gar Mat Gar Fac Gar Fac Gar Fac Gar Fac Gar Fac Gar Fac Ext Cet Arc Hub Peak Influence 1338 | 5 190 55 457 350 . 74 404 847 532 627 383 858 540 799 649 818 609 907 530 700 573 684 679 299 1338 Average Influence 367 | 1 54 9 200 169 . 50 100 605 361 452 285 653 455 653 353 476 344 627 303 423 216 417 464 164 353 Maximum Alert Level 4 | . . . 2 1 . . 2 3 2 2 1 3 2 3 2 3 2 3 2 3 2 2 3 1 4 Low Security (%) 28 | . . . . . . . . . . . . . . . . . . . . . . . . . . Level 1 28 | . . . . . . . . . . . . . . . . . . . . . . . . . . Level 2 33 | . . . . . . . . . . . . . . . . . . . . . . . . . . Level 3 10 | . . . . . . . . . . . . . . . . . . . . . . . . . . Level 4 . | . . . . . . . . . . . . . . . . . . . . . . . . . . Level 5 . | . . . . . . . . . . . . . . . . . . . . . . . . . . High Security . | . . . . . . . . . . . . . . . . . . . . . . . . . . Max Security . | . . . . . . . . . . . . . . . . . . . . . . . . . . Squads Dispatched 56 | . 3 . . . . . 1 . 2 . 1 . 2 . 5 . 6 . 1 . 9 8 . . 18 Investigation 5 | . 1 . . . . . . . 1 . . . 1 . . . . . . . . 2 . . . Extermination 17 | . . . . . . . . . . . . . 1 . 4 . 3 . . . 6 . . . 3 Reinforcement 22 | . 2 . . . . . 1 . 1 . 1 . . . 1 . 2 . 1 . 2 4 . . 7 Assault 5 | . . . . . . . . . . . . . . . . . 1 . . . . 2 . . 2 Garrison 7 | . . . . . . . . . . . . . . . . . . . . . 1 . . . 6 Intercept . | . . . . . . . . . . . . . . . . . . . . . . . . . . Construction Impeded 3 | . . . . . . . . . . . . . . . . . 1 . . . . 1 . . 1 Haulers Reinforced 4 | . . . . . . . . . . . . . . . . . . . . . 2 . . . 2 Stealth | -11 -10 -10 -9 -9 -9 -8 -8 -8 -8 -8 -7 -7 -7 -7 -6 -6 -5 -5 -4 -4 -4 -4 -4 -4 -4 --------- Run | Scr Mat Min Mat Min Exi Min Mat Gar Mat Gar Fac Gar Fac Gar Fac Gar Fac Gar Fac Gar Fac Ext Cet Arc Hub Distress Signals 31 | . 1 . 4 . . . 5 . 6 . . . . . . . 2 . 2 . 4 . 2 . 5 Communications Jammed . | . . . . . . . . . . . . . . . . . . . . . . . . . . Distress Signals . | . . . . . . . . . . . . . . . . . . . . . . . . . . Times Spotted 660 | . 21 5 48 6 . 6 42 17 26 20 2 27 5 23 21 25 46 21 12 30 49 84 25 16 83 Peak Tracking Total 22 | . 5 3 7 4 . 3 7 4 4 7 1 8 2 4 4 9 5 8 3 8 5 9 5 2 22 Tactical Retreats 96 | . 1 . 11 . . . 3 9 2 4 . 2 . 7 3 7 6 4 . 5 9 8 3 . 12 Traps | -11 -10 -10 -9 -9 -9 -8 -8 -8 -8 -8 -7 -7 -7 -7 -6 -6 -5 -5 -4 -4 -4 -4 -4 -4 -4 ------- Run | Scr Mat Min Mat Min Exi Min Mat Gar Mat Gar Fac Gar Fac Gar Fac Gar Fac Gar Fac Gar Fac Ext Cet Arc Hub Traps Triggered 84 | . . 1 . . . . . 7 4 1 . 18 1 5 4 11 . 8 . 19 . 5 . . . Indirectly 8 | . . . . . . . . . . . . . . 1 . . . 6 . 1 . . . . . Trap Hack Attempts 6 | . . . . . . . . . . 6 . . . . . . . . . . . . . . . Triggered . | . . . . . . . . . . . . . . . . . . . . . . . . . . Disarmed . | . . . . . . . . . . . . . . . . . . . . . . . . . . Reprogrammed . | . . . . . . . . . . . . . . . . . . . . . . . . . . Reused . | . . . . . . . . . . . . . . . . . . . . . . . . . . Traps Extracted . | . . . . . . . . . . . . . . . . . . . . . . . . . . Installed . | . . . . . . . . . . . . . . . . . . . . . . . . . . Triggered . | . . . . . . . . . . . . . . . . . . . . . . . . . . Exploded 1 | . . . . . 1 . . . . . . . . . . . . . . . . . . . . Machines | -11 -10 -10 -9 -9 -9 -8 -8 -8 -8 -8 -7 -7 -7 -7 -6 -6 -5 -5 -4 -4 -4 -4 -4 -4 -4 ---------- Run | Scr Mat Min Mat Min Exi Min Mat Gar Mat Gar Fac Gar Fac Gar Fac Gar Fac Gar Fac Gar Fac Ext Cet Arc Hub Machines Disabled 87 | . . . 2 . . . 4 4 4 1 . 5 . 7 2 4 2 7 . 4 4 9 5 2 21 Max in Single Turn 14 | . . . 1 . . . 2 1 1 1 . 1 . 2 1 1 1 2 . 1 1 1 3 1 14 Garrison Access 2 | . . . . . . . . . . . . . . . . . . . . . . . . . 2 Garrison Relay 19 | . . . . . . . . 2 . 1 . 4 . 2 . 3 . 3 . 4 . . . . . Network Hub 1 | . . . . . . . . . . . . . . . . . . . . . . . . . 1 Machines Sabotaged . | . . . . . . . . . . . . . . . . . . . . . . . . . . Garrisons Compromised . | . . . . . . . . . . . . . . . . . . . . . . . . . . Overloaded Fab Kills . | . . . . . . . . . . . . . . . . . . . . . . . . . . Fab Network Shutdowns . | . . . . . . . . . . . . . . . . . . . . . . . . . . Hacking | -11 -10 -10 -9 -9 -9 -8 -8 -8 -8 -8 -7 -7 -7 -7 -6 -6 -5 -5 -4 -4 -4 -4 -4 -4 -4 --------- Run | Scr Mat Min Mat Min Exi Min Mat Gar Mat Gar Fac Gar Fac Gar Fac Gar Fac Gar Fac Gar Fac Ext Cet Arc Hub Machines Accessed 99 | . 7 1 3 1 1 . 13 . 13 . 6 . 3 . 12 . 12 . 5 . 7 8 3 1 3 Terminals 65 | . 5 . 2 1 . . 8 . 10 . 4 . . . 8 . 9 . 2 . 4 8 3 . 1 Fabricators 4 | . . . . . . . . . . . 1 . . . 1 . . . 1 . 1 . . . . Repair Stations 6 | . 1 . 1 . . . 1 . . . . . . . . . 1 . 1 . 1 . . . . Recycling Units 9 | . 1 . . . . . 1 . 1 . . . 2 . 2 . 1 . . . 1 . . . . Scanalyzers 3 | . . . . . . . 2 . 1 . . . . . . . . . . . . . . . . Garrison Access 9 | . . . . . . . 1 . 1 . 1 . 1 . 1 . 1 . 1 . . . . . 2 Total Hacks 273 | . 25 1 10 4 1 . 40 . 34 . 15 . 4 . 26 . 28 . 8 . 19 19 9 25 5 Successful 167 | . 14 1 7 2 1 . 28 . 23 . 9 . 3 . 11 . 14 . 5 . 11 8 1 25 4 Failed 106 | . 11 . 3 2 . . 12 . 11 . 6 . 1 . 15 . 14 . 3 . 8 11 8 . 1 Catastrophic 15 | . . . 1 . . . 1 . . . . . . . 3 . 6 . 1 . 1 . 2 . . Database Lockouts . | . . . . . . . . . . . . . . . . . . . . . . . . . . Manual 137 | . 12 . 3 4 1 . 15 . 20 . 9 . . . 19 . 16 . 2 . 10 14 9 . 3 Terminals 181 | . 19 . 7 4 . . 23 . 27 . 12 . . . 19 . 22 . 4 . 13 19 9 . 3 Fabricators 9 | . . . . . . . . . . . 2 . . . 3 . . . 2 . 2 . . . . Repair Stations 18 | . 4 . 3 . . . 4 . . . . . . . . . 4 . 1 . 2 . . . . Recycling Units 16 | . 2 . . . . . 1 . 4 . . . 3 . 3 . 1 . . . 2 . . . . Scanalyzers 11 | . . . . . . . 9 . 2 . . . . . . . . . . . . . . . . Garrison Access 11 | . . . . . . . 3 . 1 . 1 . 1 . 1 . 1 . 1 . . . . . 2 Terminal Hacks 73 | . 5 1 3 1 1 . 9 . 9 . 3 . . . 2 . 5 . 1 . 3 3 1 25 1 Record 25 | . . . . . . . . . . . . . . . . . . . . . . . . 25 . Part Schematic 1 | . . . . . . . . . . . . . . . . . . . 1 . . . . . . Robot Analysis 1 | . . . . . . . . . 1 . . . . . . . . . . . . . . . . Prototype ID Bank 6 | . 1 . 1 . . . 2 . 1 . . . . . . . . . . . . 1 . . . Open Door 2 | . . 1 . . . . . . . . . . . . . . . . . . 1 . . . . Terminal Index 4 | . 1 . . . . . . . 1 . . . . . 1 . 1 . . . . . . . . Fabricator Index 1 | . . . . . . . . . . . . . . . . . . . . . 1 . . . . Garrison Index 2 | . . . . . . . . . . . . . . . 1 . 1 . . . . . . . . Unreport Threat 7 | . 1 . . . . . 1 . 2 . . . . . . . . . . . . 2 1 . . Locate Traps 5 | . 1 . 1 . . . 1 . 1 . 1 . . . . . . . . . . . . . . Hauler Manifests 4 | . 1 . 1 . . . 1 . . . . . . . . . 1 . . . . . . . . Zone Layout 14 | . . . . 1 . . 4 . 3 . 2 . . . . . 2 . . . 1 . . . 1 EX-Prototype ID Bank 1 | . . . . . 1 . . . . . . . . . . . . . . . . . . . . Fabricator Hacks 8 | . . . . . . . . . . . 2 . . . 2 . . . 2 . 2 . . . . Load Schematic 4 | . . . . . . . . . . . 1 . . . 1 . . . 1 . 1 . . . . Build 4 | . . . . . . . . . . . 1 . . . 1 . . . 1 . 1 . . . . Repair Station Hacks 10 | . 3 . 2 . . . 1 . . . . . . . . . 3 . . . 1 . . . . Scan Component 5 | . 1 . 1 . . . 1 . . . . . . . . . 1 . . . 1 . . . . Repair 3 | . 1 . 1 . . . . . . . . . . . . . 1 . . . . . . . . Refit 2 | . 1 . . . . . . . . . . . . . . . 1 . . . . . . . . Recycling Unit Hacks 7 | . 1 . . . . . 1 . 1 . . . 2 . 1 . . . . . 1 . . . . Retrieve Components 7 | . 1 . . . . . 1 . 1 . . . 2 . 1 . . . . . 1 . . . . Scanalyzer 10 | . . . . . . . 8 . 2 . . . . . . . . . . . . . . . . Insert Component 4 | . . . . . . . 3 . 1 . . . . . . . . . . . . . . . . Analyze 6 | . . . . . . . 5 . 1 . . . . . . . . . . . . . . . . Garrison Access Hacks 9 | . . . . . . . 1 . 1 . 1 . 1 . 1 . 1 . 1 . . . . . 2 Unlock Access 8 | . . . . . . . 1 . 1 . 1 . 1 . 1 . 1 . 1 . . . . . 1 Seal Access 1 | . . . . . . . . . . . . . . . . . . . . . . . . . 1 Unauthorized Hacks 130 | . 15 . 5 2 . . 17 . 25 . 8 . . . 18 . 12 . 2 . 12 12 . . 2 Terminals 50 | . 5 . 2 1 . . 8 . 10 . 3 . . . 5 . 5 . 1 . 4 5 . . 1 Track 20 | . 3 . 1 1 . . 5 . 4 . 1 . . . 1 . 1 . . . 2 . . . 1 Assimilate 5 | . . . . . . . 1 . 2 . 1 . . . . . . . . . . 1 . . . Botnet 19 | . 1 . . . . . 2 . 3 . 1 . . . 3 . 3 . 1 . 2 3 . . . Operators 6 | . 1 . 1 . . . . . 1 . . . . . 1 . 1 . . . . 1 . . . Fabricators . | . . . . . . . . . . . . . . . . . . . . . . . . . . Repair Stations . | . . . . . . . . . . . . . . . . . . . . . . . . . . Recycling Units . | . . . . . . . . . . . . . . . . . . . . . . . . . . Scanalyzers . | . . . . . . . . . . . . . . . . . . . . . . . . . . Garrison Access . | . . . . . . . . . . . . . . . . . . . . . . . . . . Data Cores Recovered . | . . . . . . . . . . . . . . . . . . . . . . . . . . Used . | . . . . . . . . . . . . . . . . . . . . . . . . . . Hacking Detections 83 | . 6 . 2 1 . . 9 . 12 . 5 . 1 . 11 . 12 . 5 . 7 7 3 . 2 Full Trace Events 3 | . 1 . . . . . 1 . . . . . . . . . . . . . . 1 . . . Feedback Events . | . . . . . . . . . . . . . . . . . . . . . . . . . . Feedback Blocked . | . . . . . . . . . . . . . . . . . . . . . . . . . . Robot Schematics Acquired . | . . . . . . . . . . . . . . . . . . . . . . . . . . Robots Built . | . . . . . . . . . . . . . . . . . . . . . . . . . . Matter . | . . . . . . . . . . . . . . . . . . . . . . . . . . Time . | . . . . . . . . . . . . . . . . . . . . . . . . . . Total Robot Build Rating . | . . . . . . . . . . . . . . . . . . . . . . . . . . Part Schematics Acquired 5 | . . . . . . . 3 . 1 . . . . . . . . . 1 . . . . . . Parts Built 5 | . . . . . . . . . . . 1 . . . 1 . . . 1 . 2 . . . . Matter 628 | . . . . . . . . . . . 146 . . . 102 . . . 102 . 278 . . . . Time 181 | . . . . . . . . . . . 36 . . . 25 . . . 51 . 69 . . . . Total Part Build Rating 23 | . . . . . . . . . . . 3 . . . 1 . . . 1 . 18 . . . . Parts Repaired 3 | . 1 . 1 . . . . . . . . . . . . . 1 . . . . . . . . Time 74 | . 26 . 26 . . . . . . . . . . . . . 22 . . . . . . . . Parts Recycled . | . . . . . . . . . . . . . . . . . . . . . . . . . . Recycled Matter . | . . . . . . . . . . . . . . . . . . . . . . . . . . Retrieved Matter . | . . . . . . . . . . . . . . . . . . . . . . . . . . Retrieved Components 19 | . 7 . . . . . 4 . . . . . 4 . 3 . . . . . 1 . . . . Parts Scanalyzed 4 | . . . . . . . 3 . 1 . . . . . . . . . . . . . . . . Part Schematics Acquired 4 | . . . . . . . 3 . 1 . . . . . . . . . . . . . . . . Parts Damaged . | . . . . . . . . . . . . . . . . . . . . . . . . . . Bothacking | -11 -10 -10 -9 -9 -9 -8 -8 -8 -8 -8 -7 -7 -7 -7 -6 -6 -5 -5 -4 -4 -4 -4 -4 -4 -4 ------------ Run | Scr Mat Min Mat Min Exi Min Mat Gar Mat Gar Fac Gar Fac Gar Fac Gar Fac Gar Fac Gar Fac Ext Cet Arc Hub Used RIF Installer 7 | . . . . . . . . 1 . 1 . 1 . 1 . 1 . 1 . 1 . . . . . Coupler Efficiency 2 | . . . . . . . . . . . . . . . . . . 1 . 1 . . . . . Robot Detection 1 | . . . . . . . . . . 1 . . . . . . . . . . . . . . . Structural Interface 1 | . . . . . . . . . . . . . . 1 . . . . . . . . . . . Program Shield 1 | . . . . . . . . . . . . 1 . . . . . . . . . . . . . Autoassimilate 1 | . . . . . . . . . . . . . . . . 1 . . . . . . . . . Robots Hacked 43 | . . . . . . . . . . 4 . . . . 7 3 7 1 4 2 3 7 1 4 . Non-combat 21 | . . . . . . . . . . . . . . . 4 . 3 . 2 1 3 7 . 1 . Combat 22 | . . . . . . . . . . 4 . . . . 3 3 4 1 2 1 . . 1 3 . Autoassimilated 3 | . . . . . . . . . . . . . . . . 1 1 1 . . . . . . . Robot Hacks Applied 58 | . . . . . . . . . . 5 . . . . 8 2 12 . 6 2 8 10 1 4 . parse_system 4 | . . . . . . . . . . . . . . . . . 1 . . 1 . . 1 1 . generate_echo 3 | . . . . . . . . . . . . . . . . . 1 . . . . 2 . . . ignore_repairs 1 | . . . . . . . . . . . . . . . . . . . . . . 1 . . . find_fabricator 2 | . . . . . . . . . . . . . . . 2 . . . . . . . . . . drop_inventory 8 | . . . . . . . . . . . . . . . . . 2 . . . 2 4 . . . recall_reinforcements 1 | . . . . . . . . . . . . . . . . . . . . . 1 . . . . purge_threat 11 | . . . . . . . . . . . . . . . 1 . 2 . 3 . 3 2 . . . locate_traps 1 | . . . . . . . . . . . . . . . . . . . . . 1 . . . . block_reporting 3 | . . . . . . . . . . . . . . . . . 1 . 1 . 1 . . . . summon_haulers 1 | . . . . . . . . . . . . . . . . . 1 . . . . . . . . clear_repairs 1 | . . . . . . . . . . . . . . . . . 1 . . . . . . . . scatter_targeting 1 | . . . . . . . . . . . . . . . . . 1 . . . . . . . . spike_heat 1 | . . . . . . . . . . 1 . . . . . . . . . . . . . . . amplify_resonance 1 | . . . . . . . . . . . . . . . . . . . . . . 1 . . . disable_weapons 2 | . . . . . . . . . . . . . . . . . 1 . . 1 . . . . . streamctrl_high 1 | . . . . . . . . . . 1 . . . . . . . . . . . . . . . formatsys_low 1 | . . . . . . . . . . . . . . . 1 . . . . . . . . . . formatsys_high 15 | . . . . . . . . . . 3 . . . . 4 2 1 . 2 . . . . 3 . Relay Couplers Released 76 | . . . . . . . . 7 . 4 . 15 . 8 . 11 . 12 . 16 . . . . 3 Machine Destruction 76 | . . . . . . . . 7 . 4 . 15 . 8 . 11 . 12 . 16 . . . . 3 Attached 18 | . . . . . . . . . . 2 . . . 2 2 1 3 1 1 1 1 2 . 1 1 Robots Rewired 17 | . . . . . . . . . . . . . . . 3 . . . . . . 13 1 . . Allies Hacked . | . . . . . . . . . . . . . . . . . . . . . . . . . . Hacks Repelled . | . . . . . . . . . . . . . . . . . . . . . . . . . . Allies | -11 -10 -10 -9 -9 -9 -8 -8 -8 -8 -8 -7 -7 -7 -7 -6 -6 -5 -5 -4 -4 -4 -4 -4 -4 -4 -------- Run | Scr Mat Min Mat Min Exi Min Mat Gar Mat Gar Fac Gar Fac Gar Fac Gar Fac Gar Fac Gar Fac Ext Cet Arc Hub Total Allies 48 | . . . . 3 . . . . 1 4 . . . . 8 3 2 1 2 . . 20 1 3 . Largest Group 8 | . . . . 3 3 3 1 . 1 3 1 . . . 2 4 3 1 1 . . 8 1 2 2 Highest-Rated Group 414 | . . . . 40 40 40 16 . 10 37 5 . . . 59 122 90 29 47 . . 414 56 128 128 Highest-Rated Ally 156 | . . . . 16 16 16 16 . 10 16 5 . . . 32 32 49 29 47 . . 156 56 64 64 Total Orders 47 | . . . . . . . . . 1 2 . . . . 6 8 11 . 1 5 . 7 1 3 2 STAY 10 | . . . . . . . . . 1 . . . . . 2 . 1 . . 1 . 3 1 1 . GOTO 19 | . . . . . . . . . . 1 . . . . 2 5 5 . 1 3 . 1 . 1 . FOLLOW 18 | . . . . . . . . . . 1 . . . . 2 3 5 . . 1 . 3 . 1 2 Ally Attacks 361 | . . . . 28 . 21 12 . . 24 1 . . . 32 8 26 . 8 . . 170 6 6 19 Total Damage 10119 | . . . . 247 . 236 63 . . 224 8 . . . 614 303 842 . 152 . . 6212 108 288 822 Kills 61 | . . . . 4 . 2 1 . . 2 . . . . 7 2 3 . . . . 34 2 . 4 Allies Corrupted 1 | . . . . . . . . . . . . . . . 1 . . . . . . . . . . Allies Melted 1 | . . . . . . . . . . . . . . . . . 1 . . . . . . . . Intel | -11 -10 -10 -9 -9 -9 -8 -8 -8 -8 -8 -7 -7 -7 -7 -6 -6 -5 -5 -4 -4 -4 -4 -4 -4 -4 ------- Run | Scr Mat Min Mat Min Exi Min Mat Gar Mat Gar Fac Gar Fac Gar Fac Gar Fac Gar Fac Gar Fac Ext Cet Arc Hub Robot Analysis Total 1 | . . . . . . . . . 1 . . . . . . . . . . . . . . . . Derelict Logs Recovered 2 | . . 1 . 1 . . . . . . . . . . . . . . . . . . . . . Drone Launches 1 | . . . . . . . . . . . . . . . . . . . . 1 . . . . . Drone Recoveries . | . . . . . . . . . . . . . . . . . . . . . . . . . . Exploration | -11 -10 -10 -9 -9 -9 -8 -8 -8 -8 -8 -7 -7 -7 -7 -6 -6 -5 -5 -4 -4 -4 -4 -4 -4 -4 ------------- Run | Scr Mat Min Mat Min Exi Min Mat Gar Mat Gar Fac Gar Fac Gar Fac Gar Fac Gar Fac Gar Fac Ext Cet Arc Hub Turns Passed 40921 | 81 1562 891 1184 831 614 642 2216 1039 1846 1479 719 2353 616 1746 2028 2153 2798 1585 470 1876 2316 6673 723 942 1538 Spaces Moved 19167 | 70 742 460 467 688 399 421 1177 558 906 838 408 1333 332 1121 1068 1268 1096 950 220 850 807 1911 256 405 416 Core 4 | 2 . . . . . . . . 1 . . . . . . . . . . . . 1 . . . Treads 5229 | 1 715 460 335 . . . . . . . . . . . . . . . . 761 473 1407 256 405 416 Legs 130 | . . . . . . . . . . . . . . . . . . . . . . 130 . . . Wheels 13804 | 67 27 . 132 688 399 421 1177 558 905 838 408 1333 332 1121 1068 1268 1096 950 220 89 334 373 . . . Hover . | . . . . . . . . . . . . . . . . . . . . . . . . . . Flight . | . . . . . . . . . . . . . . . . . . . . . . . . . . Fastest Speed 50 | 50 80 160 110 110 110 140 130 140 140 110 140 110 150 120 150 120 150 130 150 130 140 130 180 200 200 Average Speed 151 | 80 157 160 153 110 133 140 140 140 142 132 149 141 150 129 150 141 151 142 159 178 163 181 199 200 200 Slowest Speed 2550 | 160 160 160 200 110 140 190 150 150 2250 190 150 150 150 150 150 150 220 160 160 200 200 2550 200 200 200 Overloaded Moves . | . . . . . . . . . . . . . . . . . . . . . . . . . . Propulsion Burnouts . | . . . . . . . . . . . . . . . . . . . . . . . . . . Robots Hopped . | . . . . . . . . . . . . . . . . . . . . . . . . . . Cave-ins Triggered . | . . . . . . . . . . . . . . . . . . . . . . . . . . Time Travels 1 | . . . . . . . . . . 1 . . . . . . . . . . . . . . . Exploration Rate (%) 60 | 4 90 77 42 96 68 75 79 76 81 50 14 75 8 87 39 91 29 92 5 89 20 93 68 92 44 Regions Visited 25 Branch Regions 8 Pre-discovered Areas . | . . . . . . . . . . . . . . . . . . . . . . . . . . Known Exits Taken 7 | . . . . . . . 1 . 1 . 1 . 1 . 1 . 1 . 1 . . . . . . Unknown Exits Taken 11 | 1 1 1 1 1 1 1 . . . . . . . . . . . . . . 1 1 1 1 . Scrap Searched 5 | . . 1 . 3 . 1 . . . . . . . . . . . . . . . . . . . Spaces Dug 346 | . . . 32 11 . . 38 . 54 2 11 6 13 . 46 6 51 20 2 2 34 7 . . 11 Terrain Destroyed 1431 | . . 6 156 11 . . 80 100 188 36 19 28 13 26 68 75 80 61 4 10 44 177 . 2 247 Melee 221 | . . . 4 . . . 38 . 54 . 11 3 13 . 46 . 31 . 2 . 11 7 . . 1 Projectile 151 | . . . . . . . . 1 . . . . . . 1 10 12 4 2 5 10 21 . 2 83 AOE 1059 | . . 6 152 11 . . 42 99 134 36 8 25 . 26 21 65 37 57 . 5 23 149 . . 163 Actions | -11 -10 -10 -9 -9 -9 -8 -8 -8 -8 -8 -7 -7 -7 -7 -6 -6 -5 -5 -4 -4 -4 -4 -4 -4 -4 --------- Run | Scr Mat Min Mat Min Exi Min Mat Gar Mat Gar Fac Gar Fac Gar Fac Gar Fac Gar Fac Gar Fac Ext Cet Arc Hub Total 28229 | 88 942 588 756 743 482 452 1564 739 1283 1099 493 1691 393 1340 1341 1529 2035 1104 304 1120 1526 4828 448 490 851 Wait 5129 | . 70 88 101 40 62 18 200 52 225 56 33 19 2 37 89 19 676 3 25 69 423 2490 56 22 254 Move 19143 | 69 741 459 466 687 398 420 1177 557 906 836 408 1331 332 1119 1068 1266 1096 948 220 848 806 1910 255 404 416 Hop . | . . . . . . . . . . . . . . . . . . . . . . . . . . Pick Up 508 | 7 6 13 27 1 18 1 19 3 6 47 16 61 6 39 12 41 42 26 7 30 16 34 28 1 1 Fast Attach 124 | 7 4 1 3 . . . 3 . 8 5 1 7 3 5 3 8 10 2 1 8 19 23 1 2 . Attach 162 | . 1 1 11 . 1 1 9 . 2 14 2 10 2 4 3 6 12 7 5 9 10 25 18 1 8 Detach 78 | 1 . . 1 . . . 3 . 1 7 1 2 . 1 2 4 5 7 2 2 15 12 10 . 2 Swap 420 | . 8 3 26 2 . . 30 15 17 9 2 18 9 14 25 24 28 10 6 15 39 67 16 13 24 Drop 320 | 2 11 7 15 2 3 1 14 5 6 13 12 25 9 26 13 16 25 5 5 16 33 30 25 1 . Fire 1465 | 2 101 16 101 11 . 11 55 51 51 83 5 62 16 46 48 61 65 62 17 71 138 170 39 39 144 Melee 423 | . . . 5 . . . 54 . 61 14 12 20 14 8 70 4 75 . 16 . 19 43 . 7 1 Ram 3 | . . . . . . . . . . 1 1 . . . . . 1 . . . . . . . . Kick . | . . . . . . . . . . . . . . . . . . . . . . . . . . Crush 9 | . . . . . . . . . . . . . . . . . . . . . 8 . . . 1 Escape Stasis 438 | . . . . . . . . 56 . 8 . 136 . 41 8 80 . 34 . 51 . 24 . . . Rewire . | . . . . . . . . . . . . . . . . . . . . . . . . . . Trap 6 | . . . . . . . . . . 6 . . . . . . . . . . . . . . . Miscellaneous 1 | . . . . . . . . . . . . . . . . . . . . 1 . . . . . Route ------- -11/Scrapyard -10/Materials (discovered 5 exits: *Mat x3 / *Min x2) -10/Mines -9/Materials (discovered 3 exits: *Mat / *Min / *Sto) -9/Mines (discovered 4 exits: *Mat x2 / *Exi / [*Zio]) -9/Exiles -8/Mines (discovered 2 exits: *Mat x2) -8/Materials (discovered 3 exits: *Fac x2 / Gar) -8/Garrison (discovered 3 exits: *Mat x3) -8/Materials (discovered 4 exits: *Fac x3 / Gar) -8/Garrison -7/Factory (discovered 4 exits: *Fac x2 / [Low] / Gar) -7/Garrison (discovered 3 exits: *Fac x3) -7/Factory (discovered 3 exits: *Fac x2 / Gar) -7/Garrison (discovered 3 exits: *Fac x3) -6/Factory (discovered 3 exits: *Fac x2 / Gar) -6/Garrison (discovered 3 exits: *Fac x3) -5/Factory (discovered 2 exits: *Fac / Gar) -5/Garrison (discovered 3 exits: *Fac x3) -4/Factory -4/Garrison (discovered 3 exits: *Fac x3) -4/Factory (discovered 3 exits: [*Upp x2] / *Ext) -4/Extension (discovered 2 exits: [*Res] / *Cet) -4/Cetus (discovered 2 exits: [*Res] / *Arc) -4/Archives (discovered 3 exits: [*Res] / *Hub x2) -4/Hub_04(d) (discovered 2 exits: [*Res x2]) History --------- Turn | Location | Event 21 | -11/Scrapyard | Discovered new exit (range 15) 82 | -11/Scrapyard | Entered Materials 313 | -10/Materials | Build established: Mutant 329 | -10/Materials | Discovered new exit (range 8) 462 | -10/Materials | Discovered new exit (range 9) 581 | -10/Materials | Discovered new exit (range 5) 811 | -10/Materials | Repaired Lgt. Treads 839 | -10/Materials | Discovered new exit (range 16) 1020 | -10/Materials | Discovered new exit (range 16) 1644 | -10/Materials | Entered Mines 1675 | -10/Mines | Found a damaged Exp. Sensor Array with a note attached 1681 | -10/Mines | Found Prototype Device 2001 | -10/Mines | Joined a pair of Derelicts in attacking an 0b10 outpost 2244 | -10/Mines | Received a Rocket Launcher from a helpful Derelict 2394 | -10/Mines | Met a Derelict who couldn't figure out how to use a Trap Extractor 2475 | -10/Mines | Core integrity fell below 50% 2526 | -10/Mines | Discovered new exit (range 8) 2535 | -10/Mines | Entered Materials 2535 | -9/Materials | Evolved 2 slots: Utility x2 2536 | -9/Materials | Identified exit to Storage 3178 | -9/Materials | Build established: Hauler-Mutant 3187 | -9/Materials | Lost 3 parts (1u2w) 3202 | -9/Materials | Destroyed 8 combat bots 3306 | -9/Materials | Discovered new exit (range 9) 3357 | -9/Materials | Discovered new exit (range 15) 3497 | -9/Materials | Repaired Lgt. Armor Plating 3586 | -9/Materials | Destroyed 7 combat bots 3719 | -9/Materials | Entered Mines 3807 | -9/Mines | Deemed a non-threat by the Exiles lab entrance 3839 | -9/Mines | Assisted by bots powering up and referring to "LRC-V3" 4111 | -9/Mines | Discovered new exit (range 15) 4143 | -9/Mines | A Derelict revealed a hidden shortcut to a safe place 4245 | -9/Mines | Learned Materials trap positions 4273 | -9/Mines | Discovered new exit (range 15) 4533 | -9/Mines | Discovered new exit (range 5) 4550 | -9/Mines | Entered Exiles 4550 | -9/Exiles | Accompanied by 3 allies 4579 | -9/Exiles | Met 8R-AWN 4597 | -9/Exiles | Met EX-HEX 4758 | -9/Exiles | Met EX-DEC 4883 | -9/Exiles | Met EX-BIN 4900 | -9/Exiles | Aligned with FarCom system 4901 | -9/Exiles | Given EX-Vault access code 4935 | -9/Exiles | Opened EX-Vault 4943 | -9/Exiles | Found Chronowheel 4951 | -9/Exiles | Found Superbattery 4955 | -9/Exiles | Found Supersonic Drone Bay 4987 | -9/Exiles | Warned to stay clear of 0b10 Research branches 4995 | -9/Exiles | Exiles lab attacked by MAIN.C 5084 | -9/Exiles | Discovered new exit (range 11) 5164 | -9/Exiles | Stole three prototypes: Superbattery, Supersonic Drone Bay, Chronowheel 5164 | -9/Exiles | Entered Mines 5164 | -8/Mines | Accompanied by 3 allies 5750 | -8/Mines | Discovered new exit (range 16) 5783 | -8/Mines | Discovered new exit (range 14) 5806 | -8/Mines | Entered Materials 5806 | -8/Materials | Accompanied by 1 ally 5806 | -8/Materials | Evolved 2 slots: Utility x2 5807 | -8/Materials | Loaded intel: 11 trap records 6104 | -8/Materials | Discovered new exit (range 16) 7827 | -8/Materials | Identified Exp. Sensor Array 7862 | -8/Materials | Discovered new exit (range 16) 8022 | -8/Materials | Identified exit to Garrison 8022 | -8/Materials | Entered Garrison 8116 | -8/Garrison | Triggered checkpoint 8263 | -8/Garrison | Discovered new exit (range 14) 8375 | -8/Garrison | Triggered checkpoint 8461 | -8/Garrison | Discovered new exit (range 15) 8540 | -8/Garrison | Triggered checkpoint 8609 | -8/Garrison | Discovered new exit (range 15) 8636 | -8/Garrison | Installed Relay Interface Framework 8717 | -8/Garrison | Triggered checkpoint 8756 | -8/Garrison | Garrison Relay disabled 8930 | -8/Garrison | Garrison Relay disabled 9061 | -8/Garrison | Entered Materials 9692 | -8/Materials | Discovered new exit (range 5) 9930 | -8/Materials | Discovered new exit (range 7) 10839 | -8/Materials | Discovered new exit (range 3) 10907 | -8/Materials | Identified exit to Garrison 10907 | -8/Materials | Entered Garrison 10912 | -8/Garrison | Activated Chronowheel 10912 | -8/Garrison | Spacetime reconverged on an earlier point 10918 | -8/Garrison | Expanded RIF knowledge: Robot Detection 11257 | -8/Garrison | Triggered checkpoint 11345 | -8/Garrison | Garrison Relay disabled 11568 | -8/Garrison | Triggered checkpoint 11840 | -8/Garrison | Triggered checkpoint 11842 | -8/Garrison | Triggered checkpoint 11853 | -8/Garrison | Core integrity fell below 50% 11947 | -8/Garrison | Discovered new exit (range 10) 12386 | -8/Garrison | Entered Factory 12386 | -7/Factory | Accompanied by 1 ally 12386 | -7/Factory | Evolved 2 slots: Utility x2 12388 | -7/Factory | FarCom data flow suspended 12449 | -7/Factory | Discovered new exit (range 7) 12713 | -7/Factory | Discovered new exit (range 15) 12900 | -7/Factory | Fabricated Hacking Suite (x1) 12983 | -7/Factory | Discovered new exit (range 19) 13105 | -7/Factory | Identified exit to Garrison 13105 | -7/Factory | Entered Garrison 13203 | -7/Garrison | Garrison Relay disabled 13437 | -7/Garrison | Triggered checkpoint 13488 | -7/Garrison | Destroyed 8 combat bots 13490 | -7/Garrison | Triggered checkpoint 13492 | -7/Garrison | Triggered checkpoint 13622 | -7/Garrison | Triggered checkpoint 13664 | -7/Garrison | Discovered new exit (range 15) 13752 | -7/Garrison | Garrison Relay disabled 13882 | -7/Garrison | Discovered new exit (range 14) 13932 | -7/Garrison | Triggered checkpoint 14085 | -7/Garrison | Discovered new exit (range 10) 14106 | -7/Garrison | Expanded RIF knowledge: Program Shield 14169 | -7/Garrison | Triggered checkpoint 14229 | -7/Garrison | Lost 4 parts (3u1w) 14319 | -7/Garrison | Garrison Relay disabled 15224 | -7/Garrison | Garrison Relay disabled 15458 | -7/Garrison | Entered Factory 15647 | -7/Factory | Discovered new exit (range 11) 15913 | -7/Factory | Discovered new exit (range 13) 16074 | -7/Factory | Identified exit to Garrison 16074 | -7/Factory | Entered Garrison 16250 | -7/Garrison | Triggered checkpoint 16270 | -7/Garrison | Garrison Relay disabled 16422 | -7/Garrison | Triggered checkpoint 16486 | -7/Garrison | Discovered new exit (range 10) 16543 | -7/Garrison | Triggered checkpoint 16624 | -7/Garrison | Triggered checkpoint 16650 | -7/Garrison | Build established: Scavenger-Mutant 16747 | -7/Garrison | Discovered new exit (range 15) 16973 | -7/Garrison | Triggered checkpoint 17049 | -7/Garrison | Discovered new exit (range 8) 17067 | -7/Garrison | Expanded RIF knowledge: Structural Interface 17102 | -7/Garrison | Garrison Relay disabled 17585 | -7/Garrison | Build established: Bothacker-Mutant 17820 | -7/Garrison | Entered Factory 17820 | -6/Factory | Evolved 2 slots: Utility x2 18139 | -6/Factory | Discovered new exit (range 8) 19116 | -6/Factory | Fabricated Humpback (x1) 19605 | -6/Factory | Discovered new exit (range 16) 19848 | -6/Factory | Identified exit to Garrison 19848 | -6/Factory | Entered Garrison 19848 | -6/Garrison | Accompanied by 1 ally 20062 | -6/Garrison | Build established: Hauler-Mutant 20146 | -6/Garrison | Triggered checkpoint 20414 | -6/Garrison | Triggered checkpoint 20424 | -6/Garrison | Garrison Relay disabled 20616 | -6/Garrison | Triggered checkpoint 20667 | -6/Garrison | Discovered new exit (range 15) 20699 | -6/Garrison | Expanded RIF knowledge: Autoassimilate 20785 | -6/Garrison | Triggered checkpoint 20845 | -6/Garrison | Discovered new exit (range 14) 20964 | -6/Garrison | Garrison Relay disabled 21098 | -6/Garrison | Triggered checkpoint 21202 | -6/Garrison | Discovered new exit (range 14) 21268 | -6/Garrison | Build established: Bothacker-Mutant 21293 | -6/Garrison | Garrison Relay disabled 21343 | -6/Garrison | Triggered checkpoint 21961 | -6/Garrison | Triggered checkpoint 22001 | -6/Garrison | Entered Factory 22001 | -5/Factory | Accompanied by 3 allies 22001 | -5/Factory | Evolved 2 slots: Utility x2 22152 | -5/Factory | Build established: Botlord-Mutant 22301 | -5/Factory | First assault squad dispatched 23537 | -5/Factory | Repaired Arm. Huge Wheel? 23613 | -5/Factory | Build established: Bothacker-Mutant 23764 | -5/Factory | Lost 3 parts (3u) 24487 | -5/Factory | System corruption reached 10% 24606 | -5/Factory | Discovered new exit (range 6) 24799 | -5/Factory | Identified exit to Garrison 24799 | -5/Factory | Entered Garrison 24830 | -5/Garrison | Lost 3 parts (2u1w) 24931 | -5/Garrison | Spotted B-75 Beast 24994 | -5/Garrison | Triggered checkpoint 25014 | -5/Garrison | Triggered checkpoint 25031 | -5/Garrison | Destroyed B-75 Beast 25106 | -5/Garrison | Discovered new exit (range 10) 25241 | -5/Garrison | Discovered new exit (range 15) 25264 | -5/Garrison | Build established: Hauler-Mutant 25324 | -5/Garrison | Triggered checkpoint 25416 | -5/Garrison | Destroyed 9 combat bots 25431 | -5/Garrison | Discovered new exit (range 14) 25458 | -5/Garrison | Expanded RIF knowledge: Coupler Efficiency 25548 | -5/Garrison | Triggered checkpoint 25600 | -5/Garrison | Garrison Relay disabled 25885 | -5/Garrison | Triggered checkpoint 25911 | -5/Garrison | Build established: Bothacker-Mutant 25949 | -5/Garrison | Garrison Relay disabled 26384 | -5/Garrison | Entered Factory 26384 | -4/Factory | Evolved 2 slots: Utility x2 26500 | -4/Factory | Build established: Botlord-Mutant 26532 | -4/Factory | Fabricated Humpback (x1) 26854 | -4/Factory | Identified exit to Garrison 26854 | -4/Factory | Entered Garrison 26902 | -4/Garrison | Triggered checkpoint 26902 | -4/Garrison | Triggered checkpoint 26914 | -4/Garrison | Spotted B-86 Titan 26937 | -4/Garrison | Destroyed B-86 Titan 26964 | -4/Garrison | Lost 4 parts (3u1w) 27207 | -4/Garrison | Found Hvy. Reflective Plating 27295 | -4/Garrison | Build established: Hauler-Mutant 27350 | -4/Garrison | Triggered checkpoint 27388 | -4/Garrison | Garrison Relay disabled 27457 | -4/Garrison | Discovered new exit (range 14) 27565 | -4/Garrison | Triggered checkpoint 27652 | -4/Garrison | Discovered new exit (range 9) 27679 | -4/Garrison | Expanded RIF knowledge: Coupler Efficiency 27716 | -4/Garrison | Triggered checkpoint 27812 | -4/Garrison | Garrison Relay disabled 28228 | -4/Garrison | Triggered checkpoint 28331 | -4/Garrison | Garrison Relay disabled 28378 | -4/Garrison | Build established: Botlord-Mutant 28486 | -4/Garrison | Discovered new exit (range 9) 28524 | -4/Garrison | Triggered checkpoint 28642 | -4/Garrison | Garrison Relay disabled 28730 | -4/Garrison | Entered Factory 29201 | -4/Factory | Discovered new exit (range 7) 29721 | -4/Factory | Lost 3 parts (3u) 30037 | -4/Factory | System corruption reached 10% 30145 | -4/Factory | Discovered new exit (range 3) 30637 | -4/Factory | Fabricated Biometal Heavy Treads? 30795 | -4/Factory | Garrison activated, responded to threat 31037 | -4/Factory | Discovered new exit (range 6) 31046 | -4/Factory | Entered Extension 31294 | -4/Extension | Rescued a captive Derelict 31296 | -4/Extension | Rescued a captive Derelict 31651 | -4/Extension | Rescued A7 31796 | -4/Extension | Disrupted transfer network 31999 | -4/Extension | Rescued a captive Derelict 32009 | -4/Extension | Rescued a captive Derelict 32140 | -4/Extension | Spotted B-86 Titan 32160 | -4/Extension | Spotted B-86 Titan 32164 | -4/Extension | Extracted ID and sensor layout for unrecognized location from A7's data core 32207 | -4/Extension | Lost 4 parts (1n1u2w) 32572 | -4/Extension | Rewired B-86 Titan 32625 | -4/Extension | Rewired B-86 Titan 33010 | -4/Extension | Found Hvy. Reflective Plating 33260 | -4/Extension | Core integrity fell below 50% 33296 | -4/Extension | First assault squad dispatched 33917 | -4/Extension | Lost 5 parts (1n1u3w) 34689 | -4/Extension | Rescued a captive Derelict 34690 | -4/Extension | Rescued a captive Derelict 34920 | -4/Extension | Discovered new exit (range 10) 34922 | -4/Extension | Discovered new exit (range 6) 37719 | -4/Extension | Entered Cetus 37770 | -4/Cetus | Spotted Cetus Guard 37773 | -4/Cetus | Destroyed Cetus Guard 37775 | -4/Cetus | Destroyed Cetus Guard 37776 | -4/Cetus | Destroyed Cetus Guard 37781 | -4/Cetus | Spotted Cetus Guard 37784 | -4/Cetus | Destroyed Cetus Guard 38233 | -4/Cetus | Discovered new exit (range 16) 38298 | -4/Cetus | Destroyed Cetus Guard 38300 | -4/Cetus | Spotted Cetus Guard 38302 | -4/Cetus | Destroyed Cetus Guard 38303 | -4/Cetus | Destroyed Cetus Guard 38308 | -4/Cetus | Spotted Cetus Guard 38310 | -4/Cetus | Destroyed Cetus Guard 38342 | -4/Cetus | Discovered new exit (range 16) 38354 | -4/Cetus | Met Revision 17 38442 | -4/Cetus | Entered Archives 38548 | -4/Archives | Discovered new exit (range 15) 38576 | -4/Archives | Unable to access archive contents 38580 | -4/Archives | Discovered new exit (range 15) 38852 | -4/Archives | Discovered new exit (range 15) 38935 | -4/Archives | Build established: Bothacker-Mutant 39384 | -4/Archives | Entered Hub_04(d) 39384 | -4/Hub_04(d) | Accompanied by 2 allies 39384 | -4/Hub_04(d) | Discovered new exit (range 10) 39559 | -4/Hub_04(d) | Disrupted transfer network 39640 | -4/Hub_04(d) | Garrison activated, responded to threat 39824 | -4/Hub_04(d) | Build established: Scavenger-Mutant 39930 | -4/Hub_04(d) | Discovered new exit (range 13) 39978 | -4/Hub_04(d) | Garrison activated, responded to threat 39987 | -4/Hub_04(d) | Core integrity fell below 20% 40326 | -4/Hub_04(d) | Lost 3 parts (1p2u) 40343 | -4/Hub_04(d) | Destroyed 7 combat bots 40565 | -4/Hub_04(d) | Build established: Bothacker-Mutant 40734 | -4/Hub_04(d) | Garrison activated, responded to threat 40825 | -4/Hub_04(d) | Identified exit to Garrison 40884 | -4/Hub_04(d) | First assault squad dispatched 40918 | -4/Hub_04(d) | Network Hub disabled 40918 | -4/Hub_04(d) | Spotted Lightning 40918 | -4/Hub_04(d) | Spotted Lightning 40918 | -4/Hub_04(d) | Spotted Lightning 40918 | -4/Hub_04(d) | Spotted Lightning 40918 | -4/Hub_04(d) | Spotted Lightning 40918 | -4/Hub_04(d) | Spotted Lightning 40918 | -4/Hub_04(d) | Spotted Lightning 40918 | -4/Hub_04(d) | Spotted Lightning 40918 | -4/Hub_04(d) | Spotted Lightning 40918 | -4/Hub_04(d) | Spotted Lightning 40918 | -4/Hub_04(d) | Spotted Lightning 40918 | -4/Hub_04(d) | Spotted Lightning 40922 | -4/Hub_04(d) | Destroyed by Lightning with EMDS Last Messages --------------- 40918_ Destroyed Centrium Medium Armor Plating. 40918_ ALERT: Garrison Access compromised, dispatching assault squad. 40918_ Garrison Access disabled. 40918_ Relay Coupler [Brawler] tumbles out of Garrison Access. 40918_ Relay Coupler [NC] tumbles out of Garrison Access. 40918_ Relay Coupler [Demolisher] tumbles out of Garrison Access. 40918_ Lgt. Ion Engine fried. 40918_ K-01 Serf destroyed. 40918_ Wheel fried. 40918_ K-01 Serf destroyed. 40919_ C-30 ARC bursts open, deploying its payload. 40919_ G-73 Enforcer unfolds itself. 40919_ L-61 Swordsman unfolds itself. 40919_ G-67 Veteran unfolds itself. 40919_ I-47 Archangel unfolds itself. 40920_ Slug penetrates Lightning. 40920_ Lightning suffers critical hit. 40920_ Destroyed Prototype Leg. 40920_ Slug penetrates Lightning. 40922_ Penetrated by EMDS Slug. Map ----- +----------------------------------------------------+ | ?????????????????????????????????????????????????? | | ?????????????????????????????????????????????????? | | ?????????????????????????????????????????????????? | | ?????????????????????????????????????????????????? | | ?????????????????????????????????????????????????? | | ?????????????????????????????????????????????????? | | ????????????????????????????#?????????###????????? | | ???????????????????????? ???# ??????###"#######??? | | ???????????????????????# ??# ??????#= #??? | | ???????????????????????# ?# ?????# #??? | | ??????????????????????## #? ?????# " #??? | | ??????????????????????# =##/###### " #??? | | ??????????????????????# # " #??? | | ??????????????????????# # " " #??? | | ???????????????????????? # ""G"" #??# | | ???????????????????????? # !! #? | | ?????????????????#?"######## % ##[%+"###### | | ?????????????????# ^^! | | ####?????????????# % ^^= | | "" #?????????????# A %=^^%! | | T" #??#?###+#######/;###+#########"*""##+###+### | | #? #?? ## %!! # ! #??? | | # #??""" !! " "" ih "";# =%! # """" #??? | | # #??""" !! "=""|!hhh ;# ! ! # """" !#??? | | " + ????""" ! !"[""%%hhhi;# %[ # """" #??? | | " #??# """" ="=""i|h@ !## "" !# """" #??? | | " #??# %=[%gl*!hhh""## """ # #??? | | #??# gg =[g% %*=!h[i ## """ + """" #??? | | #????#########l;i%%######## """ ![# """" /#??? | | #??????????# % %;? ?????#######"/"#%"""" #??? | | #????????? ;%## #???# # """" % #="""" #??? | | ####???????? ## ## #??# ## """ #%[= =#??? | | #???++#????? ??# ## #?# #?# """" *[########??? | | ??? ??????? ????#%## ## #??# """" # #????????? | | ?? ????????????# ## #!#???# ###????????? | | ?? "????????????# ## %#????# #??????????? | | ? """???????????#*##%#?????# #??????????? | | ? """"????????####!##"#######=" #??????????? | | """"""???????#!% !* | *!%==+%%" ##?????????? | | """"" ?????#"T!=##############+####??????????? | | """ #???#"""!#??????????# #???????????? | | " #???####[#??????????# #???????????? | | "#?????#!#??????????# < #???????????? | | ########??????????# #??????????# #???????????? | | ??????????????????# #??????????# #???????????? | | ??????????????????#[#??????????## ##???????????? | | ??????????????????#=#???????????# #????????????? | | ??????????????????#%#???????????# #????????????? | | ??????????????????#=#???????????# #????????????? | | ???????????????####=#???????????# #????????????? | +----------------------------------------------------+ Best States ------------- Heat Dissipation 74 Energy Generation 27 Energy Capacity 2350 Matter Stores 300 Matter Capacity 300 Sight Range 16 Terrain Scan Density 10 Armor Coverage 2400 Resistance: TH 25 Weapon Cycling 30 Phase Shifting 10 Evasion (%) 50 Targeting Accuracy 14 Target Analysis 6 Recoil Reduction 2 Energy Filtering 30 Particle Charging 20 Offensive Hacking 20 Item Schematics ----------------- Humpback | -8/Materials | Scanalyzed Arm. Wheel | -8/Materials | Scanalyzed Exp. Sensor Array | -8/Materials | Scanalyzed Hacking Suite | -8/Materials | Scanalyzed Biometal Heavy Treads | -4/Factory | Hacked Robot Schematics ------------------ None Fabricated ------------ Hacking Suite | x1 | -7/Factory Humpback | x1 | -6/Factory Humpback | x1 | -4/Factory Biometal Heavy Treads | x2 | -4/Factory Alien Tech Used ----------------- None Achievements -------------- None Challenges ------------ None Game ------ Seed PoweredVortexNeutralizer Manual? 0 Play Time 06:59:16 Cumulative 794.9 hours Start 2019.10.24 @ 23:32:12 End 2019.10.26 @ 23:25:03 Sessions 9 Manual Loads 0 Difficulty Rogue Special Mode None Game No. 296 Rogue 296 Adventurer 0 Explorer 0 Win Type - Total 20 Types 10/1/7/0/0/0/2 Lore% 95 Gallery% 94 Achievement% 79 Wizard Run 0 Options --------- ASCII 0 Keyboard 0 Movement Vi Keybinds 0 Fullscreen 0 Font 12/Crisp Map View 76x50 Tactical HUD 1 Map Filters NONE Filters NONE Steam 1 RUN: bdb67648-7a5f-4c93-b134-17cc2e958fca